[Event "98th Caplin Hastings Masters 2024-25"]
[Site "Hastings"]
[Date "2024.12.31"]
[Round "5.42"]
[White "Miller, Daniel"]
[Black "Ashton, Alannah"]
[Result "0-1"]
[ECO "D95"]
[WhiteElo "2093"]
[BlackElo "1953"]
[Annotator "NA RC"]
[PlyCount "94"]
[EventDate "2024.12.23"]
[EventType "swiss"]
[EventCountry "ENG"]
[SourceTitle "playchess.com"]
[Source "ChessBase"]
[SourceQuality "1"]
[TimeControl "5400+30"]

1. d4 {[%emt 0:00:03]} Nf6 {[%emt 0:00:06]} 2. c4 {[%emt 0:00:06]} g6 {[%emt 0:00:03]} 3. Nc3 {[%emt 0:00:05]} d5 {[%emt 0:00:05]} 4. e3 {[%emt 0:00:07]} Bg7 {[%emt 0:00:07]} 5. Qb3 {[%emt 0:00:10]} c6 {[%emt 0:02:28]} 6. cxd5 {[%emt 0:00:11]} cxd5 {[%emt 0:04:47]} 7. Nf3 {[%emt 0:03:12]} O-O {[%emt 0:03:37]} 8. Be2 {[%emt 0:02:44]} Nc6 {[%emt 0:06:00]} 9. O-O {[%emt 0:10:18]} b6 {[%emt 0:09:02]} 10. Qa4 {[%emt 0:22:17]} Na5 {[%emt 0:02:57]} 11. Qd1 {[%emt 0:13:13]} Bf5 {[%emt 0:06:15]} 12. b3 {[%emt 0:01:17]} a6 {[%emt 0:05:10]} 13. Bb2 {[%emt 0:02:11]} b5 {[%emt 0:09:48]} 14. Ne1 {[%emt 0:02:31]} Nb7 {[%emt 0:06:40]} 15. Bf3 {[%emt 0:00:35]} Rc8 {[%emt 0:06:25]} 16. Nd3 {[%emt 0:02:16]} Ne4 {[%emt 0:02:42]} 17. Bxe4 {[%emt 0:04:23]} dxe4 {[%emt 0:00:09]} 18. Nf4 {[%emt 0:01:52]} e5 {[%emt 0:02:44]} 19. Nfe2 {[%emt 0:00:42]} b4 {[%emt 0:01:49]} 20. Na4 {[%emt 0:01:05]} Bg4 {[%emt 0:15:37]} 21. h3 {[%emt 0:03:37]} Bxe2 {[%emt 0:01:21]} 22. Qxe2 {[%emt 0:00:05]} exd4 {[%emt 0:00:06]} 23. exd4 {[%emt 0:00:49]} Nd6 {[%emt 0:02:10]} 24. Qxa6 {[%emt 0:04:22]} Nf5 {[%emt 0:00:34]} 25. d5 {[%emt 0:02:19]} Bxb2 {[%emt 0:00:40]} 26. Nxb2 {[%emt 0:00:13]} Qxd5 {[%emt 0:01:45]} 27. Rad1 {[%emt 0:01:18]} Qc5 {[%emt 0:00:22]} 28. Qc4 {[%emt 0:01:49]} Qe5 {[%emt 0:03:30]} 29. Qe2 {[%emt 0:00:20]} Nd4 {[%emt 0:01:22]} 30. Qd2 {[%emt 0:01:23]} Rfd8 {[%emt 0:00:35]} 31. Qe1 {[%emt 0:03:09]} Re8 {[%emt 0:05:08]} 32. Nc4 {[%emt 0:00:45]} Nf3+ {[%emt 0:00:45]} 33. gxf3 {[%emt 0:00:24]} Qg5+ {[%emt 0:00:06]} 34. Kh2 {[%emt 0:02:37]} exf3 {[%emt 0:00:07]} 35. Rg1 {[%emt 0:00:43]} Qf4+ {[%emt 0:00:04]} 36. Rg3 {[%emt 0:00:53]} Rxe1 {[%emt 0:00:02]} 37. Rxe1 {[%emt 0:00:07]} Ra8 {[%emt 0:00:14]} 38. Re3 {[%emt 0:00:48]} Rxa2 {[%emt 0:00:38]} 39. Rexf3 {[%emt 0:00:31]} Rxf2+ {[%emt 0:00:13]} 40. Rxf2 {[%emt 0:00:19]} Qxf2+ {[%emt 0:00:02]} 41. Rg2 {[%emt 0:00:11]} Qf3 {[%emt 0:00:29]} 42. Rg3 {[%emt 0:00:13]} Qe2+ {[%emt 0:00:04]} 43. Rg2 {[%emt 0:00:26]} Qd3 {[%emt 0:00:11]} 44. Rb2 {[%emt 0:00:31]} Qc3 {[%emt 0:00:18]} 45. Kg2 {[%emt 0:00:12]} f5 {[%emt 0:00:30]} 46. Kh2 {[%emt 0:00:10]} f4 {[%emt 0:00:06]} 47. Rf2 {[%emt 0:00:22]} Qg3+ {[%emt 0:01:26]} 0-1

[Event "98th Caplin Hastings Masters 2024-25"]
[Site "Hastings"]
[Date "2024.12.31"]
[Round "5.43"]
[White "Mikalajunas, Kajus"]
[Black "Flynn, David"]
[Result "1-0"]
[ECO "B38"]
[WhiteElo "1941"]
[BlackElo "1834"]
[Annotator "NA RC"]
[PlyCount "67"]
[EventDate "2024.12.23"]
[EventType "swiss"]
[EventCountry "ENG"]
[SourceTitle "playchess.com"]
[Source "ChessBase"]
[SourceQuality "1"]
[TimeControl "5400+30"]

1. Nf3 {[%emt 0:00:03]} c5 {[%emt 0:05:12]} 2. c4 {[%emt 0:00:03]} g6 {[%emt 0:00:09]} 3. d4 {[%emt 0:00:21]} cxd4 {[%emt 0:00:14]} 4. Nxd4 {[%emt 0:00:03]} Bg7 {[%emt 0:00:18]} 5. e4 {[%emt 0:00:07]} Nc6 {[%emt 0:00:37]} 6. Nc2 {[%emt 0:00:14]} Nf6 {[%emt 0:01:05]} 7. Nc3 {[%emt 0:00:11]} d6 {[%emt 0:00:18]} 8. Be2 {[%emt 0:00:19]} Nd7 {[%emt 0:00:24]} 9. Bd2 {[%emt 0:00:39]} Nd4 {[%emt 0:08:08]} 10. Nxd4 {[%emt 0:03:27]} Bxd4 {[%emt 0:00:04]} 11. O-O {[%emt 0:02:39]} O-O {[%emt 0:00:48]} 12. Bh6 {[%emt 0:06:12]} Bg7 {[%emt 0:00:05]} 13. Bxg7 {[%emt 0:00:28]} Kxg7 {[%emt 0:00:02]} 14. Qd4+ {[%emt 0:02:13]} Kg8 {[%emt 0:00:35]} 15. Rfd1 {[%emt 0:03:07]} Qb6 {[%emt 0:07:56]} 16. Nd5 {[%emt 0:01:50]} Qd8 {[%emt 0:01:49]} 17. Rac1 {[%emt 0:00:49]} b6 {[%emt 0:14:34]} 18. f4 {[%emt 0:04:11]} Nc5 {[%emt 0:07:48]} 19. b4 {[%emt 0:06:56]} Ne6 {[%emt 0:00:51]} 20. Qe3 {[%emt 0:05:24]} Bd7 {[%emt 0:05:44]} 21. Rc3 {[%emt 0:03:26]} Nc7 {[%emt 0:07:49]} 22. Nxc7 {[%emt 0:03:10]} Qxc7 {[%emt 0:00:02]} 23. f5 {[%emt 0:00:43]} f6 {[%emt 0:02:34]} 24. Qh6 {[%emt 0:03:18]} g5 {[%emt 0:03:33]} 25. c5 {[%emt 0:02:29]} b5 {[%emt 0:03:14]} 26. Rh3 {[%emt 0:11:42]} Rf7 {[%emt 0:00:18]} 27. Bh5 {[%emt 0:00:27]} Rg7 {[%emt 0:01:23]} 28. Bg6 {[%emt 0:00:29]} hxg6 {[%emt 0:03:56]} 29. Qh8+ {[%emt 0:00:19]} Kf7 {[%emt 0:00:02]} 30. fxg6+ {[%emt 0:00:57]} Rxg6 {[%emt 0:01:11]} 31. Rh7+ {[%emt 0:00:57]} Ke6 {[%emt 0:00:03]} 32. Qxa8 {[%emt 0:03:09]} Bc6 {[%emt 0:00:02]} 33. Qf8 {[%emt 0:02:52]} Bxe4 {[%emt 0:01:51]} 34. Rxd6+ {[%emt 0:00:27]} 1-0

[Event "98th Caplin Hastings Masters 2024-25"]
[Site "Hastings"]
[Date "2024.12.31"]
[Round "5.44"]
[White "Hu, Junyan"]
[Black "Chandler, Cliff R"]
[Result "1/2-1/2"]
[ECO "B01"]
[WhiteElo "1933"]
[BlackElo "2161"]
[Annotator "NA RC"]
[PlyCount "61"]
[EventDate "2024.12.23"]
[EventType "swiss"]
[EventCountry "ENG"]
[SourceTitle "playchess.com"]
[Source "ChessBase"]
[SourceQuality "1"]
[TimeControl "5400+30"]

1. e4 {[%emt 0:00:18]} d5 {[%emt 0:00:07]} 2. exd5 {[%emt 0:00:25]} Nf6 {[%emt 0:00:07]} 3. d4 {[%emt 0:01:13]} Bg4 {[%emt 0:00:22]} 4. f3 {[%emt 0:00:10]} Bf5 {[%emt 0:00:07]} 5. g4 {[%emt 0:00:37]} Bg6 {[%emt 0:00:08]} 6. c4 {[%emt 0:00:11]} c6 {[%emt 0:00:46]} 7. Nc3 {[%emt 0:00:18]} cxd5 {[%emt 0:01:28]} 8. g5 {[%emt 0:00:06]} Nfd7 {[%emt 0:02:53]} 9. Nxd5 {[%emt 0:02:22]} e6 {[%emt 0:01:40]} 10. Nc3 {[%emt 0:04:32]} Nc6 {[%emt 0:01:43]} 11. Nge2 {[%emt 0:07:36]} Qa5 {[%emt 0:20:04]} 12. Nf4 {[%emt 0:03:43]} Qxg5 {[%emt 0:00:27]} 13. Nxg6 {[%emt 0:01:14]} Qxg6 {[%emt 0:00:27]} 14. Be3 {[%emt 0:02:26]} Be7 {[%emt 0:06:26]} 15. Qd2 {[%emt 0:02:31]} Bh4+ {[%emt 0:01:47]} 16. Bf2 {[%emt 0:00:11]} Bxf2+ {[%emt 0:01:50]} 17. Qxf2 {[%emt 0:02:20]} O-O-O {[%emt 0:05:11]} 18. O-O-O {[%emt 0:02:03]} Nb6 {[%emt 0:05:50]} 19. d5 {[%emt 0:03:28]} exd5 {[%emt 0:09:40]} 20. cxd5 {[%emt 0:00:08]} Ne5 {[%emt 0:00:34]} 21. f4 {[%emt 0:02:31]} Ng4 {[%emt 0:01:43]} 22. Bh3 {[%emt 0:02:42]} Kb8 {[%emt 0:01:48]} 23. Bxg4 {[%emt 0:01:32]} Qxg4 {[%emt 0:00:06]} 24. Rhg1 {[%emt 0:00:08]} Qf5 {[%emt 0:00:14]} 25. Rxg7 {[%emt 0:03:41]} Nxd5 {[%emt 0:00:21]} 26. Rg5 {[%emt 0:00:10]} Qxf4+ {[%emt 0:00:27]} 27. Qxf4+ {[%emt 0:00:04]} Nxf4 {[%emt 0:00:11]} 28. Rf5 {[%emt 0:00:18]} Rxd1+ {[%emt 0:03:05]} 29. Kxd1 {[%emt 0:01:12]} Ne6 {[%emt 0:09:32]} 30. Rxf7 {[%emt 0:01:26]} h5 {[%emt 0:00:05]} 31. Rf6 {[%emt 0:00:33]} 1/2-1/2

[Event "98th Caplin Hastings Masters 2024-25"]
[Site "Hastings"]
[Date "2024.12.31"]
[Round "5.45"]
[White "Wheeler, James M"]
[Black "Wilson, Matthew R"]
[Result "1-0"]
[ECO "C47"]
[WhiteElo "1863"]
[BlackElo "1766"]
[Annotator "NA RC"]
[PlyCount "103"]
[EventDate "2024.12.23"]
[EventType "swiss"]
[EventCountry "ENG"]
[SourceTitle "playchess.com"]
[Source "ChessBase"]
[SourceQuality "1"]
[TimeControl "5400+30"]

1. e4 {[%emt 0:00:03]} e5 {[%emt 0:00:01]} 2. Nc3 {[%emt 0:00:09]} Nf6 {[%emt 0:00:17]} 3. Nf3 {[%emt 0:00:29]} Nc6 {[%emt 0:00:08]} 4. g3 {[%emt 0:00:20]} d5 {[%emt 0:00:56]} 5. exd5 {[%emt 0:00:25]} Nxd5 {[%emt 0:00:11]} 6. Bg2 {[%emt 0:00:29]} Nxc3 {[%emt 0:07:15]} 7. bxc3 {[%emt 0:02:47]} Bd6 {[%emt 0:00:09]} 8. O-O {[%emt 0:01:19]} O-O {[%emt 0:00:03]} 9. d3 {[%emt 0:00:56]} Bd7 {[%emt 0:08:02]} 10. Re1 {[%emt 0:06:42]} Qf6 {[%emt 0:03:19]} 11. Ng5 {[%emt 0:02:27]} Qg6 {[%emt 0:02:10]} 12. Ne4 {[%emt 0:03:32]} f5 {[%emt 0:00:56]} 13. Nxd6 {[%emt 0:00:30]} cxd6 {[%emt 0:00:04]} 14. f4 {[%emt 0:01:17]} Rae8 {[%emt 0:03:53]} 15. Be3 {[%emt 0:06:40]} b6 {[%emt 0:02:41]} 16. c4 {[%emt 0:02:17]} Na5 {[%emt 0:11:19]} 17. Qd2 {[%emt 0:07:00]} Bc6 {[%emt 0:00:30]} 18. Rab1 {[%emt 0:06:32]} Bxg2 {[%emt 0:03:47]} 19. Qxg2 {[%emt 0:01:00]} Qf7 {[%emt 0:08:59]} 20. Bd2 {[%emt 0:02:34]} Nb7 {[%emt 0:00:42]} 21. fxe5 {[%emt 0:01:20]} dxe5 {[%emt 0:00:39]} 22. Bb4 {[%emt 0:00:42]} Nc5 {[%emt 0:01:13]} 23. Bxc5 {[%emt 0:01:07]} bxc5 {[%emt 0:00:06]} 24. Rb7 {[%emt 0:00:18]} Re7 {[%emt 0:01:44]} 25. Rxe7 {[%emt 0:00:12]} Qxe7 {[%emt 0:00:09]} 26. Qd5+ {[%emt 0:00:09]} Kh8 {[%emt 0:02:38]} 27. Qxe5 {[%emt 0:01:57]} Qf7 {[%emt 0:05:45]} 28. Qe7 {[%emt 0:00:52]} Qxe7 {[%emt 0:06:27]} 29. Rxe7 {[%emt 0:00:07]} Kg8 {[%emt 0:00:02]} 30. Rxa7 {[%emt 0:00:38]} Rb8 {[%emt 0:00:40]} 31. Rc7 {[%emt 0:02:13]} Rb1+ {[%emt 0:01:20]} 32. Kg2 {[%emt 0:00:26]} Rb2 {[%emt 0:00:13]} 33. Rxc5 {[%emt 0:00:36]} Rxc2+ {[%emt 0:00:20]} 34. Kh3 {[%emt 0:00:08]} Rf2 {[%emt 0:02:32]} 35. a4 {[%emt 0:00:21]} g5 {[%emt 0:00:03]} 36. g4 {[%emt 0:00:53]} Rf3+ {[%emt 0:02:55]} 37. Kg2 {[%emt 0:00:08]} Rxd3 {[%emt 0:00:06]} 38. Rxf5 {[%emt 0:00:23]} h6 {[%emt 0:01:10]} 39. Rd5 {[%emt 0:03:15]} Rc3 {[%emt 0:01:22]} 40. Rc5 {[%emt 0:00:51]} Kf7 {[%emt 0:00:49]} 41. a5 {[%emt 0:01:24]} Ke7 {[%emt 0:00:55]} 42. Rc6 {[%emt 0:00:30]} Rc2+ {[%emt 0:03:33]} 43. Kf3 {[%emt 0:00:17]} Rxh2 {[%emt 0:00:12]} 44. Ke4 {[%emt 0:00:21]} Rg2 {[%emt 0:08:31]} 45. Rxh6 {[%emt 0:00:15]} Rxg4+ {[%emt 0:00:07]} 46. Kd5 {[%emt 0:00:06]} Rg1 {[%emt 0:01:33]} 47. a6 {[%emt 0:01:05]} Rd1+ {[%emt 0:04:17]} 48. Kc6 {[%emt 0:00:18]} Ra1 {[%emt 0:02:00]} 49. Kb7 {[%emt 0:00:10]} Rb1+ {[%emt 0:00:27]} 50. Rb6 {[%emt 0:00:13]} Rd1 {[%emt 0:00:25]} 51. a7 {[%emt 0:00:35]} Rd7+ {[%emt 0:00:20]} 52. Ka6 {[%emt 0:00:07]} 1-0

[Event "98th Caplin Hastings Masters 2024-25"]
[Site "Hastings"]
[Date "2024.12.31"]
[Round "5.46"]
[White "Buckland, Louis"]
[Black "Dette, Jan"]
[Result "1/2-1/2"]
[ECO "E04"]
[WhiteElo "1856"]
[BlackElo "2102"]
[Annotator "NA RC"]
[PlyCount "39"]
[EventDate "2024.12.23"]
[EventType "swiss"]
[EventCountry "ENG"]
[SourceTitle "playchess.com"]
[Source "ChessBase"]
[SourceQuality "1"]
[TimeControl "5400+30"]

1. d4 {[%emt 0:00:02]} Nf6 {[%emt 0:00:07]} 2. c4 {[%emt 0:00:22]} e6 {[%emt 0:00:06]} 3. g3 {[%emt 0:00:05]} d5 {[%emt 0:00:05]} 4. Bg2 {[%emt 0:00:04]} dxc4 {[%emt 0:00:06]} 5. Nf3 {[%emt 0:00:05]} c5 {[%emt 0:02:39]} 6. O-O {[%emt 0:00:15]} Nc6 {[%emt 0:00:21]} 7. Qa4 {[%emt 0:00:07]} Bd7 {[%emt 0:00:44]} 8. Qxc4 {[%emt 0:00:07]} b5 {[%emt 0:00:17]} 9. Qd3 {[%emt 0:00:07]} c4 {[%emt 0:01:12]} 10. Qd1 {[%emt 0:00:07]} Rc8 {[%emt 0:00:34]} 11. Ne5 {[%emt 0:01:01]} Bd6 {[%emt 0:05:33]} 12. Nxd7 {[%emt 0:00:08]} Nxd7 {[%emt 0:03:40]} 13. d5 {[%emt 0:10:18]} exd5 {[%emt 0:02:38]} 14. Qxd5 {[%emt 0:02:25]} Be5 {[%emt 0:15:12]} 15. Bh3 {[%emt 0:11:52]} a6 {[%emt 0:03:20]} 16. Nc3 {[%emt 0:13:09]} Rc7 {[%emt 0:06:12]} 17. Be3 {[%emt 0:15:05]} Nf6 {[%emt 0:08:09]} 18. Qxd8+ {[%emt 0:03:55]} Nxd8 {[%emt 0:02:47]} 19. Rfd1 {[%emt 0:02:56]} Nb7 {[%emt 0:09:30]} 20. Bg2 {[%emt 0:05:29]} 1/2-1/2

[Event "98th Caplin Hastings Masters 2024-25"]
[Site "Hastings"]
[Date "2024.12.31"]
[Round "5.47"]
[White "Norinkeviciute, Rasa"]
[Black "Chapman, Luke"]
[Result "1/2-1/2"]
[ECO "A25"]
[WhiteElo "1952"]
[BlackElo "1706"]
[Annotator "NA RC"]
[PlyCount "114"]
[EventDate "2024.12.23"]
[EventType "swiss"]
[EventCountry "ENG"]
[SourceTitle "playchess.com"]
[Source "ChessBase"]
[SourceQuality "1"]
[TimeControl "5400+30"]

1. c4 {[%emt 0:00:18]} f5 {[%emt 0:00:06]} 2. Nc3 {[%emt 0:00:24]} Nf6 {[%emt 0:00:05]} 3. g3 {[%emt 0:00:11]} g6 {[%emt 0:00:05]} 4. Bg2 {[%emt 0:00:07]} Bg7 {[%emt 0:00:05]} 5. e3 {[%emt 0:00:33]} O-O {[%emt 0:00:08]} 6. Nge2 {[%emt 0:00:22]} d6 {[%emt 0:00:24]} 7. d4 {[%emt 0:01:39]} Nc6 {[%emt 0:01:04]} 8. O-O {[%emt 0:00:30]} e5 {[%emt 0:00:34]} 9. b3 {[%emt 0:00:39]} g5 {[%emt 0:02:53]} 10. dxe5 {[%emt 0:10:25]} dxe5 {[%emt 0:01:12]} 11. Ba3 {[%emt 0:01:19]} Re8 {[%emt 0:02:07]} 12. Qxd8 {[%emt 0:13:02]} Rxd8 {[%emt 0:06:46]} 13. Nb5 {[%emt 0:04:59]} Ne8 {[%emt 0:01:22]} 14. Bd5+ {[%emt 0:08:19]} Kh8 {[%emt 0:01:01]} 15. Rad1 {[%emt 0:03:26]} Bd7 {[%emt 0:04:49]} 16. Nbc3 {[%emt 0:09:21]} Bf6 {[%emt 0:07:36]} 17. Bf7 {[%emt 0:05:13]} Rac8 {[%emt 0:03:24]} 18. Rxd7 {[%emt 0:09:59]} Rxd7 {[%emt 0:01:27]} 19. Be6 {[%emt 0:00:02]} Rcd8 {[%emt 0:00:41]} 20. Bxd7 {[%emt 0:00:02]} Rxd7 {[%emt 0:00:08]} 21. e4 {[%emt 0:01:34]} f4 {[%emt 0:04:58]} 22. f3 {[%emt 0:02:27]} Be7 {[%emt 0:05:16]} 23. Bxe7 {[%emt 0:01:25]} Nxe7 {[%emt 0:00:02]} 24. Rd1 {[%emt 0:02:24]} Rxd1+ {[%emt 0:00:16]} 25. Nxd1 {[%emt 0:00:04]} c6 {[%emt 0:01:53]} 26. Kf2 {[%emt 0:01:52]} Kg7 {[%emt 0:00:26]} 27. c5 {[%emt 0:01:41]} Nf6 {[%emt 0:00:41]} 28. Nc1 {[%emt 0:00:40]} Nd7 {[%emt 0:01:35]} 29. Nd3 {[%emt 0:00:13]} Kf6 {[%emt 0:00:49]} 30. N1b2 {[%emt 0:01:26]} fxg3+ {[%emt 0:00:55]} 31. hxg3 {[%emt 0:00:11]} Ke6 {[%emt 0:06:29]} 32. Nc4 {[%emt 0:03:44]} h5 {[%emt 0:00:46]} 33. f4 {[%emt 0:04:06]} exf4 {[%emt 0:00:35]} 34. gxf4 {[%emt 0:00:03]} gxf4 {[%emt 0:02:05]} 35. Nxf4+ {[%emt 0:00:05]} Kf6 {[%emt 0:00:07]} 36. Nxh5+ {[%emt 0:01:43]} Kg5 {[%emt 0:00:08]} 37. Ng3 {[%emt 0:01:40]} Nxc5 {[%emt 0:00:06]} 38. Ke3 {[%emt 0:00:25]} Ne6 {[%emt 0:02:25]} 39. Nd6 {[%emt 0:01:52]} b6 {[%emt 0:00:40]} 40. Ngf5 {[%emt 0:01:46]} Nxf5+ {[%emt 0:04:53]} 41. exf5 {[%emt 0:00:59]} Nc5 {[%emt 0:00:21]} 42. Nc8 {[%emt 0:02:35]} Kxf5 {[%emt 0:10:12]} 43. Nxa7 {[%emt 0:00:09]} Ke5 {[%emt 0:01:05]} 44. Nxc6+ {[%emt 0:00:06]} Kd6 {[%emt 0:00:26]} 45. Nb4 {[%emt 0:00:41]} Ne6 {[%emt 0:01:08]} 46. Kd3 {[%emt 0:00:37]} Kc5 {[%emt 0:00:16]} 47. Kc3 {[%emt 0:00:23]} Nd8 {[%emt 0:01:14]} 48. Nd3+ {[%emt 0:00:19]} Kb5 {[%emt 0:00:10]} 49. Nb2 {[%emt 0:00:36]} Nc6 {[%emt 0:01:45]} 50. Nc4 {[%emt 0:01:58]} Kc5 {[%emt 0:00:20]} 51. a3 {[%emt 0:00:52]} Na7 {[%emt 0:01:03]} 52. b4+ {[%emt 0:00:48]} Kb5 {[%emt 0:01:16]} 53. Nb2 {[%emt 0:00:33]} Ka6 {[%emt 0:01:25]} 54. a4 {[%emt 0:01:24]} b5 {[%emt 0:02:09]} 55. Kb3 {[%emt 0:03:33]} Nc6 {[%emt 0:00:36]} 56. a5 {[%emt 0:00:36]} Nxa5+ {[%emt 0:00:06]} 57. bxa5 {[%emt 0:00:03]} Kxa5 {[%emt 0:00:07]} 1/2-1/2

[Event "98th Caplin Hastings Masters 2024-25"]
[Site "Hastings"]
[Date "2024.12.31"]
[Round "5.48"]
[White "Stokes, Stephen"]
[Black "Lee, Jungsoo"]
[Result "0-1"]
[ECO "A49"]
[WhiteElo "1866"]
[BlackElo "1705"]
[Annotator "NA RC"]
[PlyCount "104"]
[EventDate "2024.12.23"]
[EventType "swiss"]
[EventCountry "ENG"]
[SourceTitle "playchess.com"]
[Source "ChessBase"]
[SourceQuality "1"]
[TimeControl "5400+30"]

1. d4 {[%emt 0:00:03]} Nf6 {[%emt 0:00:04]} 2. Nf3 {[%emt 0:00:07]} g6 {[%emt 0:00:07]} 3. g3 {[%emt 0:00:10]} Bg7 {[%emt 0:00:07]} 4. Bg2 {[%emt 0:00:14]} O-O {[%emt 0:00:08]} 5. O-O {[%emt 0:00:39]} d6 {[%emt 0:00:09]} 6. Re1 {[%emt 0:01:58]} Nbd7 {[%emt 0:00:25]} 7. e4 {[%emt 0:01:44]} e5 {[%emt 0:00:15]} 8. c4 {[%emt 0:02:14]} Re8 {[%emt 0:01:47]} 9. d5 {[%emt 0:00:24]} a5 {[%emt 0:00:39]} 10. Nc3 {[%emt 0:01:52]} Nc5 {[%emt 0:00:12]} 11. Qc2 {[%emt 0:01:12]} Nh5 {[%emt 0:00:29]} 12. Nd2 {[%emt 0:03:18]} f5 {[%emt 0:00:48]} 13. Nb3 {[%emt 0:00:56]} b6 {[%emt 0:04:23]} 14. Nxc5 {[%emt 0:00:43]} bxc5 {[%emt 0:00:07]} 15. Bf3 {[%emt 0:06:08]} Nf6 {[%emt 0:02:35]} 16. Qe2 {[%emt 0:03:26]} Rf8 {[%emt 0:01:38]} 17. h4 {[%emt 0:01:26]} f4 {[%emt 0:00:52]} 18. Kg2 {[%emt 0:01:03]} fxg3 {[%emt 0:02:59]} 19. fxg3 {[%emt 0:00:49]} Rf7 {[%emt 0:00:42]} 20. Bd2 {[%emt 0:05:00]} Qf8 {[%emt 0:04:50]} 21. Rf1 {[%emt 0:05:29]} Bh6 {[%emt 0:00:42]} 22. Bxh6 {[%emt 0:03:29]} Qxh6 {[%emt 0:00:09]} 23. Rf2 {[%emt 0:00:36]} g5 {[%emt 0:05:15]} 24. Qd2 {[%emt 0:12:44]} Rg7 {[%emt 0:00:13]} 25. Raf1 {[%emt 0:02:19]} Bg4 {[%emt 0:06:17]} 26. Bd1 {[%emt 0:08:30]} Rg6 {[%emt 0:02:25]} 27. Rxf6 {[%emt 0:02:47]} Bh3+ {[%emt 0:02:49]} 28. Kxh3 {[%emt 0:00:33]} g4+ {[%emt 0:00:19]} 29. Bxg4 {[%emt 0:00:53]} Qxd2 {[%emt 0:00:28]} 30. Be6+ {[%emt 0:00:36]} Kh8 {[%emt 0:01:24]} 31. Rf7 {[%emt 0:04:38]} Qxb2 {[%emt 0:01:27]} 32. Nb5 {[%emt 0:00:54]} Qe2 {[%emt 0:03:25]} 33. R1f2 {[%emt 0:02:12]} Rxg3+ {[%emt 0:08:06]} 34. Kxg3 {[%emt 0:00:43]} Rg8+ {[%emt 0:00:08]} 35. Kh3 {[%emt 0:05:50]} Qe1 {[%emt 0:01:49]} 36. Rxh7+ {[%emt 0:03:48]} Kxh7 {[%emt 0:00:20]} 37. Bxg8+ {[%emt 0:00:18]} Kxg8 {[%emt 0:00:08]} 38. Rg2+ {[%emt 0:00:22]} Kh7 {[%emt 0:01:06]} 39. Nxc7 {[%emt 0:02:07]} Qxe4 {[%emt 0:00:25]} 40. Rg4 {[%emt 0:03:35]} Qf3+ {[%emt 0:00:50]} 41. Rg3 {[%emt 0:00:40]} Qf1+ {[%emt 0:00:19]} 42. Rg2 {[%emt 0:01:15]} Qxc4 {[%emt 0:00:27]} 43. Ne8 {[%emt 0:00:07]} Qd3+ {[%emt 0:00:43]} 44. Rg3 {[%emt 0:00:15]} Qf5+ {[%emt 0:00:43]} 45. Rg4 {[%emt 0:00:52]} c4 {[%emt 0:04:12]} 46. Nxd6 {[%emt 0:00:15]} Qf1+ {[%emt 0:00:33]} 47. Kg3 {[%emt 0:01:15]} c3 {[%emt 0:01:49]} 48. Rc4 {[%emt 0:01:43]} Qxc4 {[%emt 0:03:24]} 49. Nxc4 {[%emt 0:00:10]} c2 {[%emt 0:00:07]} 50. d6 {[%emt 0:00:21]} c1=Q {[%emt 0:42:12]} 51. Nxe5 {[%emt 0:00:13]} Qe3+ {[%emt 0:00:00]} 52. Nf3 {[%emt 0:00:18]} Qd3 {[%emt 0:00:00]} 0-1

[Event "98th Caplin Hastings Masters 2024-25"]
[Site "Hastings"]
[Date "2024.12.31"]
[Round "5.50"]
[White "Prudent, Sylvio"]
[Black "Choi, Hyunbin"]
[Result "0-1"]
[ECO "A08"]
[WhiteElo "1780"]
[BlackElo "1673"]
[Annotator "NA RC"]
[PlyCount "102"]
[EventDate "2024.12.23"]
[EventType "swiss"]
[EventCountry "ENG"]
[SourceTitle "playchess.com"]
[Source "ChessBase"]
[SourceQuality "1"]
[TimeControl "5400+30"]

1. Nf3 {[%emt 0:00:03]} d5 {[%emt 0:00:13]} 2. g3 {[%emt 0:00:27]} c5 {[%emt 0:00:16]} 3. Bg2 {[%emt 0:00:05]} Nc6 {[%emt 0:00:09]} 4. d3 {[%emt 0:00:07]} e5 {[%emt 0:01:10]} 5. Nbd2 {[%emt 0:00:20]} Nf6 {[%emt 0:00:14]} 6. e4 {[%emt 0:00:33]} Be7 {[%emt 0:00:50]} 7. O-O {[%emt 0:00:07]} O-O {[%emt 0:00:23]} 8. Re1 {[%emt 0:00:16]} d4 {[%emt 0:04:12]} 9. Nf1 {[%emt 0:03:58]} Be6 {[%emt 0:00:16]} 10. Ng5 {[%emt 0:00:35]} Qd7 {[%emt 0:02:32]} 11. Nxe6 {[%emt 0:00:38]} Qxe6 {[%emt 0:00:10]} 12. f4 {[%emt 0:00:08]} Qg4 {[%emt 0:04:11]} 13. Bf3 {[%emt 0:00:12]} Qd7 {[%emt 0:02:03]} 14. f5 {[%emt 0:00:07]} b5 {[%emt 0:00:13]} 15. g4 {[%emt 0:01:06]} c4 {[%emt 0:00:33]} 16. a3 {[%emt 0:00:09]} Ne8 {[%emt 0:03:53]} 17. g5 {[%emt 0:00:53]} Bd6 {[%emt 0:02:10]} 18. Ng3 {[%emt 0:07:07]} b4 {[%emt 0:01:03]} 19. Bg4 {[%emt 0:05:23]} Na5 {[%emt 0:02:02]} 20. f6 {[%emt 0:02:50]} Qa4 {[%emt 0:01:04]} 21. fxg7 {[%emt 0:01:57]} Nxg7 {[%emt 0:00:20]} 22. Nf5 {[%emt 0:00:10]} Rfd8 {[%emt 0:00:50]} 23. Rf1 {[%emt 0:08:43]} b3 {[%emt 0:04:05]} 24. Nh6+ {[%emt 0:02:02]} Kh8 {[%emt 0:00:28]} 25. Nxf7+ {[%emt 0:00:11]} Kg8 {[%emt 0:00:08]} 26. Nxd8 {[%emt 0:00:31]} Rxd8 {[%emt 0:00:33]} 27. cxb3 {[%emt 0:01:29]} Nxb3 {[%emt 0:00:23]} 28. Rb1 {[%emt 0:02:10]} Qb5 {[%emt 0:00:26]} 29. dxc4 {[%emt 0:00:27]} Qxc4 {[%emt 0:00:09]} 30. Bh5 {[%emt 0:03:57]} Nxh5 {[%emt 0:01:51]} 31. Qxh5 {[%emt 0:00:17]} d3 {[%emt 0:00:28]} 32. g6 {[%emt 0:00:38]} Bc5+ {[%emt 0:00:48]} 33. Kg2 {[%emt 0:01:43]} Qxe4+ {[%emt 0:00:17]} 34. Rf3 {[%emt 0:00:24]} hxg6 {[%emt 0:01:11]} 35. Qh3 {[%emt 0:00:37]} Nd4 {[%emt 0:00:49]} 36. Be3 {[%emt 0:04:17]} Nxf3 {[%emt 0:00:20]} 37. Qxf3 {[%emt 0:01:14]} Qxe3 {[%emt 0:00:14]} 38. Qf6 {[%emt 0:08:47]} Qe4+ {[%emt 0:00:10]} 39. Kg3 {[%emt 0:01:04]} Qf4+ {[%emt 0:00:16]} 40. Qxf4 {[%emt 0:00:09]} exf4+ {[%emt 0:00:03]} 41. Kxf4 {[%emt 0:00:21]} Bd6+ {[%emt 0:00:14]} 42. Ke3 {[%emt 0:00:32]} Bxh2 {[%emt 0:00:15]} 43. b4 {[%emt 0:00:05]} d2 {[%emt 0:00:10]} 44. Ke2 {[%emt 0:00:09]} d1=Q+ {[%emt 0:00:23]} 45. Rxd1 {[%emt 0:00:05]} Rxd1 {[%emt 0:00:06]} 46. Kxd1 {[%emt 0:00:05]} Kf7 {[%emt 0:00:29]} 47. a4 {[%emt 0:00:35]} Ke6 {[%emt 0:00:09]} 48. Ke2 {[%emt 0:00:18]} Kd5 {[%emt 0:00:07]} 49. Kd3 {[%emt 0:01:00]} g5 {[%emt 0:00:09]} 50. a5 {[%emt 0:00:13]} g4 {[%emt 0:00:07]} 51. Ke3 {[%emt 0:00:33]} Ke5 {[%emt 0:27:21]} 0-1